bitfinex/quotes_ETHUSD_20250703
["timestamp","ask_amount","ask_price","bid_price","bid_amount"]
[1751550840245,3.79231754,2637.0,2636.3,3.793195]
[1751550840458,1.6429,2637.0,2636.4,9.133]
[1751550840677,0.01,2637.1,2636.9,3.7923319]
[1751550840984,0.01,2637.1,2637.0,9.132]
[1751550841181,1.5176,2637.0,2635.8,1.6528]
[1751550841385,0.01,2637.1,2635.5,1.6528]
[1751550841386,3.7929178,2636.5,2635.5,1.6528]
[1751550841597,5.31017494,2636.8,2635.7,10.0]
[1751550841756,3.7926514,2636.7,2636.1,3.79339239]
[1751550841957,3.7926514,2636.7,2636.2,9.129]
[1751550842154,3.79314532,2636.4,2635.8,3.79381358]
[1751550842372,1.5176,2636.8,2635.9,9.128]
[1751550842591,3.98245169,2636.6,2636.1,0.1896]
[1751550842773,3.79316845,2636.4,2636.1,0.1896]
[1751550842970,3.79296642,2636.5,2636.2,9.127]
[1751550843203,3.79298456,2636.5,2636.2,9.127]
[1751550843528,3.79330283,2636.3,2636.0,0.1896]
[1751550843690,0.1896,2636.5,2636.1,9.126]
[1751550843896,3.98260099,2636.5,2636.1,9.126]
[1751550844103,3.7930768,2636.4,2636.1,9.126]
[1751550844405,1.5116,2636.3,2636.2,9.123]
[1751550845200,1.5116,2636.3,2636.0,0.1896]
[1751550845398,3.79344309,2636.2,2636.0,9.121]
[1751550845707,3.79369805,2636.0,2635.9,9.121]
[1751550845918,1.7012,2636.3,2635.9,3.79376611]
[1751550846081,1.7012,2636.3,2636.1,3.79339587]
[1751550846082,1.5116,2636.3,2636.1,3.79339587]
[1751550846409,1.5116,2636.3,2636.1,3.98299587]
[1751550846611,1.5116,2636.3,2636.2,3.79333889]
[1751550846908,1.6194,2637.0,2636.2,0.1896]
[1751550847114,3.79241113,2636.9,2636.6,0.1896]
[1751550847409,5.41165255,2637.0,2636.6,0.1896]
[1751550847790,3.79236504,2636.9,2636.6,0.1896]
[1751550848009,3.79237661,2636.9,2636.6,0.1896]
[1751550848212,3.79261956,2636.7,2636.6,0.1896]
[1751550848508,3.79247572,2636.8,2636.2,9.114]
[1751550848509,1.591,2636.3,2636.2,9.114]
[1751550848890,3.79247572,2636.8,2636.2,9.114]
[1751550849091,0.5611365,2636.9,2636.2,9.114]
[1751550849092,3.79289396,2636.6,2636.2,9.114]
[1751550849287,3.79289396,2636.6,2636.3,9.112]
[1751550849288,0.3982494,2636.6,2636.3,9.112]
[1751550849491,3.98230932,2636.7,2636.3,9.112]
[1751550849686,3.79276663,2636.6,2636.3,9.112]
[1751550849905,0.1896,2636.7,2636.3,12.90519377]
[1751550850116,0.1896,2636.7,2636.4,0.1896]
[1751550850426,0.1896,2636.7,2636.4,3.98257559]
[1751550850616,4.35354096,2636.9,2636.4,3.98257124]
[1751550850926,0.5986041,2636.8,2636.4,0.1896]
[1751550851130,0.1896,2636.9,2636.4,0.1896]
[1751550851520,0.1896,2636.9,2636.4,3.98255189]
[1751550851920,3.98193195,2636.9,2636.4,0.1896]
[1751550852108,0.1896,2636.9,2636.4,0.1896]
[1751550852309,10.0,2636.8,2636.1,3.79341577]
[1751550852511,3.79298351,2636.5,2635.9,12.89868547]
[1751550852713,3.79240725,2636.9,2636.0,3.7936267]
[1751550852911,11.6325,2637.0,2636.0,3.7936267]
[1751550852912,0.01,2637.1,2636.4,1.5385]
[1751550853103,0.01,2637.1,2636.7,3.79247957]
[1751550853442,0.01,2637.1,2636.7,3.79256693]
[1751550853628,0.01,2637.1,2636.8,3.79247572]
[1751550853829,0.01,2637.1,2636.9,9.102]
[1751550854024,3.80205116,2637.1,2636.9,9.102]
[1751550854226,0.01,2637.1,2636.9,9.102]
[1751550854446,0.01,2637.1,2637.0,3.79218809]
[1751550854746,0.01,2637.1,2637.0,5.46083853]
[1751550854904,0.01,2637.1,2637.0,6.98713853]
[1751550855515,0.01,2637.1,2637.0,5.46083853]
[1751550855710,0.01,2637.1,2637.0,3.79218809]
[1751550856816,0.01,2637.1,2636.8,3.79244088]
[1751550857016,0.01,2637.1,2637.0,3.79218809]
[1751550857727,0.01,2637.1,2637.0,9.092]
[1751550858035,0.01,2637.1,2637.0,12.88418809]
[1751550858540,0.01,2637.1,2637.0,9.092]
[1751550858840,0.01,2637.1,2637.0,9.089]
[1751550859137,0.01,2637.1,2637.0,12.88118809]
[1751550859548,0.01,2637.1,2637.0,9.089]
[1751550860353,0.01,2637.1,2637.0,12.87918809]
[1751550861735,0.01,2637.1,2637.0,14.54633904]
[1751550862241,0.01,2637.1,2637.0,14.73593904]
[1751550863457,0.01,2637.1,2637.0,9.2766]
[1751550863956,0.01,2637.1,2637.0,9.2666]
[1751550864144,0.01,2637.1,2637.0,0.1896]
[1751550864342,0.01,2637.1,2636.5,1.09092056]
[1751550864343,0.01,2637.1,2636.9,9.076]
[1751550864957,0.01,2637.1,2636.8,0.1896]
[1751550865140,1.6648,2636.8,2636.2,1.09092056]
[1751550865463,1.6648,2636.8,2636.5,0.1896]
[1751550865665,0.1896,2637.0,2636.5,0.1896]
[1751550866035,0.1896,2637.0,2636.6,9.073]
[1751550866381,0.01,2637.1,2636.7,3.79261956]
[1751550866547,0.01,2637.1,2636.9,0.1896]
[1751550867149,0.1896,2636.9,2636.7,9.069]
[1751550867357,0.01,2637.1,2636.7,9.069]
[1751550867535,0.01,2637.1,2636.8,0.1896]
[1751550868085,0.01,2637.1,2637.0,3.98178809]
[1751550868255,0.01,2637.1,2637.0,0.1896]
[1751550868623,0.01,2637.1,2637.0,3.98178809]
[1751550869038,0.01,2637.1,2637.0,0.1896]
[1751550869659,0.01,2637.1,2636.9,9.064]
[1751550870675,0.01,2637.1,2637.0,3.79218809]
[1751550871088,0.01,2637.1,2637.0,3.98178809]
[1751550871240,0.01,2637.1,2637.0,0.1896]
[1751550872080,0.01,2637.1,2636.9,9.064]
[1751550872081,3.79218809,2637.0,2636.9,9.064]
[1751550872426,3.80206074,2637.1,2636.7,0.1896]
[1751550872427,3.80211463,2637.1,2636.7,9.2476]
[1751550872676,0.01,2637.1,2636.7,9.2476]
[1751550872856,0.01,2637.1,2636.7,13.04021286]
[1751550873034,0.01,2637.1,2636.8,12.84947572]
[1751550873239,0.01,2637.1,2637.0,3.98178809]
[1751550873477,0.01,2637.1,2637.0,4.01970997]
[1751550873638,0.01,2637.1,2637.0,14.01970997]
[1751550873835,0.01,2637.1,2637.0,13.98178809]
[1751550874063,1e-08,2637.1,2637.0,17.79416805]
[1751550874337,1e-08,2637.1,2637.0,18.88508861]
[1751550874545,1e-08,2637.1,2637.0,17.79416805]
[1751550874841,1e-08,2637.1,2637.0,17.24416805]
[1751550875181,1e-08,2637.1,2637.0,19.52218023]
[1751550875677,1e-08,2637.1,2637.0,16.98229226]
[1751550875867,1e-08,2637.1,2637.0,23.03178809]
[1751550876471,1e-08,2637.1,2637.0,0.1896]
[1751550876676,1e-08,2637.1,2636.6,2.16720626]
[1751550876677,1e-08,2637.1,2636.8,1.0971447]
[1751550876864,1e-08,2637.1,2636.6,1.0971447]
[1751550877175,5.3304452,2636.9,2636.7,9.046]
[1751550877661,1.5381,2636.9,2636.7,9.046]
[1751550877865,5.33046128,2636.9,2636.7,9.046]
[1751550878062,1.5381,2636.9,2636.7,3.7925468]
[1751550878260,1.5381,2636.9,2636.8,9.2336]
[1751550878790,1.5381,2636.9,2636.8,9.044]
[1751550878966,2.09009545,2636.9,2636.8,9.042]
[1751550879287,2.09009545,2636.9,2636.6,0.1896]
[1751550879465,2.09009545,2636.9,2636.1,1.6128]
[1751550879466,3.79261956,2636.7,2636.4,0.1896]
[1751550879675,1.5381,2636.9,2636.0,0.02]
[1751550879872,3.79329105,2636.3,2636.0,9.2496]
[1751550880173,0.1896,2636.4,2636.0,0.2096]
[1751550880385,3.79333041,2636.3,2636.0,9.059]
[1751550880539,0.56893304,2636.2,2636.0,9.059]
[1751550880881,0.56893304,2636.2,2636.0,0.02]
[1751550881667,0.1896,2636.2,2636.0,0.02]
[1751550881974,3.98299972,2636.2,2636.0,0.02]
[1751550882291,1.6435,2636.5,2636.0,0.02]
[1751550882463,3.7933599,2636.2,2636.0,0.02]
[1751550882656,3.7933599,2636.2,2636.0,9.054]
[1751550882864,3.98286571,2636.3,2636.0,0.02]
[1751550883091,0.1896,2636.3,2636.0,3.81356101]
[1751550883393,1.6126,2636.0,2634.9,0.02]
[1751550883539,0.1896,2635.0,2634.9,0.02]
[1751550883743,0.7493101,2635.0,2634.9,0.02]
[1751550883948,0.1896,2635.0,2634.9,0.02]
[1751550884204,3.98466641,2635.0,2634.9,0.02]
[1751550884490,9.02453341,2635.0,2634.9,1e-08]
[1751550885250,3.79521044,2634.9,2634.8,1e-08]
[1751550885457,8.84137744,2634.9,2634.8,1e-08]
[1751550885656,11.03451501,2634.9,2634.8,1e-08]
[1751550886386,10.48451501,2634.9,2634.8,1e-08]
[1751550886590,9.58024801,2634.9,2634.8,1e-08]
[1751550886997,3.26203757,2634.9,2634.8,1e-08]
[1751550887182,1.6189,2634.9,2634.8,1e-08]
[1751550887533,1.8085,2634.9,2634.8,1e-08]
[1751550887678,5.60371044,2634.9,2634.8,1e-08]
[1751550887877,1.8085,2634.9,2634.8,1e-08]
[1751550888866,2.523,2635.1,2634.8,1e-08]
[1751550889076,3.1266,2635.1,2634.8,1e-08]
[1751550889277,3.79506641,2635.0,2634.8,1e-08]
[1751550889479,3.79506641,2635.0,2634.8,0.02140001]
[1751550889698,3.79521044,2634.9,2634.8,0.02140001]
[1751550890462,8.87497744,2634.9,2634.8,0.02140001]
[1751550890666,10.43568301,2634.9,2634.8,0.02140001]
[1751550891011,7.00841601,2634.9,2634.8,0.02140001]
[1751550891797,10.43568301,2634.9,2634.8,0.02140001]
[1751550893067,9.53241601,2634.9,2634.8,0.02140001]
[1751550893275,1.6525,2634.9,2634.8,0.02140001]
[1751550893512,5.44771044,2634.9,2634.8,0.02140001]
[1751550893715,1.6525,2634.9,2634.8,0.02140001]
[1751550893926,5.44771044,2634.9,2634.8,0.02140001]
[1751550894128,1.6525,2634.9,2634.8,0.02140001]
[1751550894422,3.98469017,2635.0,2634.8,0.02140001]
[1751550894630,0.1896,2635.0,2634.8,0.02140001]
[1751550895488,3.79521044,2634.9,2634.8,0.02140001]
[1751550895693,4.19369148,2634.9,2634.8,0.02140001]
[1751550895921,9.16535848,2634.9,2634.8,0.02140001]
[1751550897392,9.16535848,2634.9,2634.8,1e-08]
[1751550897804,20.69835848,2634.9,2634.8,1e-08]
[1751550897984,9.16535848,2634.9,2634.8,1e-08]
[1751550898521,11.68935848,2634.9,2634.8,1e-08]
[1751550898717,9.16535848,2634.9,2634.8,1e-08]
[1751550898945,2.491,2634.9,2634.8,1e-08]
[1751550899239,10.0,2635.4,2634.8,1e-08]
[1751550899386,3.79521044,2634.9,2634.8,1e-08]
[1751550899590,3.79485507,2635.2,2634.8,1e-08]
[1751550900419,3.79463438,2635.3,2634.8,1e-08]
[1751550900621,3.79415572,2635.7,2635.0,3.79499054]
[1751550900831,1.6519,2635.9,2634.9,1.5271]
[1751550901036,3.79244767,2636.9,2635.0,1.5471]
[1751550901037,11.5116,2636.4,2635.0,1.5471]
[1751550901203,3.79365055,2636.0,2635.4,3.79438036]
[1751550901396,3.79326885,2636.3,2635.7,3.79397968]
[1751550901586,4.95217079,2636.3,2635.7,3.79397438]
[1751550901787,1.15889684,2636.3,2635.6,1.5199]
[1751550902006,1.15889684,2636.3,2635.7,3.79405512]
[1751550902007,4.95215346,2636.3,2635.7,3.79405512]
[1751550902229,4.95215346,2636.3,2635.6,5.31402904]
[1751550902230,3.79334905,2636.2,2635.6,5.31402904]
[1751550902429,3.79340652,2636.2,2635.6,5.31402904]
[1751550902590,3.7935001,2636.1,2635.6,1.5199]
[1751550902790,1.02569786,2636.2,2635.6,1.5199]
[1751550903021,1.02569786,2636.2,2635.6,5.31402348]
[1751550903022,3.79335712,2636.2,2635.6,5.31402348]
[1751550903223,1.5116,2636.4,2635.6,1.5199]
[1751550903524,3.79378934,2635.9,2635.3,5.3676841]
[1751550903815,3.79369571,2636.0,2635.4,3.79441911]
[1751550904017,3.79355827,2636.1,2635.5,3.79433201]
[1751550904325,3.79355827,2636.1,2635.3,1.5731]
[1751550904326,0.75867879,2636.1,2635.3,1.5731]
[1751550904513,3.427267,2636.1,2635.3,1.5731]
[1751550904820,3.427267,2635.7,2634.7,5.36671966]
[1751550905031,1.5106,2635.4,2634.3,1.5713]
[1751550905219,2.09035535,2635.4,2634.4,3.79589799]
[1751550905518,3.79447971,2635.5,2634.8,3.79528245]
[1751550905723,10.7313,2635.7,2634.8,1e-08]
[1751550905724,13.2223,2635.7,2634.8,1e-08]
[1751550905920,3.79490742,2635.2,2634.8,1e-08]
[1751550906335,5.11643245,2635.6,2634.8,1e-08]
[1751550906336,3.79467947,2635.3,2634.8,1e-08]
[1751550906544,3.79492813,2635.1,2634.8,1e-08]
[1751550906728,3.79467947,2635.3,2634.8,1e-08]
[1751550906729,3.79485144,2635.2,2634.8,1e-08]
[1751550907043,3.79493816,2635.1,2634.8,1e-08]
[1751550907230,3.79467947,2635.3,2634.8,1e-08]
[1751550907231,3.79471682,2635.3,2634.8,1e-08]
[1751550907420,3.79477838,2635.2,2634.9,0.1896]
[1751550907608,0.1896,2635.3,2634.9,5.64960507]
[1751550907805,5.11648474,2635.6,2635.0,3.79501285]
[1751550908010,0.1896,2635.5,2635.1,0.1896]
[1751550908212,0.1896,2635.5,2635.1,3.98445178]
[1751550908410,0.1896,2635.5,2635.1,0.1896]
[1751550908642,0.1896,2635.5,2634.8,1e-08]
[1751550908643,3.79501339,2635.1,2634.8,1e-08]
[1751550908840,3.79476464,2635.3,2634.8,1e-08]
[1751550908841,0.1896,2635.2,2634.8,1e-08]
[1751550909041,3.79508575,2635.0,2634.8,1e-08]
[1751550909651,3.794996,2635.1,2634.8,1e-08]
[1751550910133,3.79508829,2635.0,2634.8,1e-08]
[1751550910327,0.1896,2635.2,2634.8,1e-08]
[1751550910522,3.98444435,2635.2,2634.8,1e-08]
[1751550910726,10.7313,2635.7,2634.8,1e-08]
[1751550910913,9.3096,2635.7,2635.1,0.1896]
[1751550911247,3.79433001,2635.6,2635.3,0.1896]
[1751550911561,3.79433001,2635.6,2635.0,1.6306]
[1751550911562,10.1896,2635.5,2635.0,0.1896]
[1751550911859,0.1896,2635.5,2635.1,3.7949094]
[1751550912062,0.1896,2635.5,2635.0,3.98457742]
[1751550912226,9.12,2635.7,2635.1,3.79483902]
[1751550912431,0.93631898,2635.6,2635.2,0.1896]
[1751550912664,3.79470478,2635.3,2635.0,0.1896]
[1751550913156,3.79511567,2635.0,2634.8,1e-08]
[1751550913513,3.79521044,2634.9,2634.8,1e-08]
[1751550913950,2.491,2635.1,2634.8,1e-08]
[1751550914151,3.79521044,2634.9,2634.8,1e-08]
[1751550914448,3.98481044,2634.9,2634.8,1e-08]
[1751550915017,6.47581044,2634.9,2634.8,1e-08]
[1751550916419,6.28609557,2635.0,2634.8,1e-08]
[1751550916623,3.79521044,2634.9,2634.8,1e-08]
[1751550916819,4.84721104,2634.9,2634.8,1e-08]
[1751550917025,1.0520006,2634.9,2634.8,1e-08]
[1751550917230,0.1896,2634.9,2634.8,1e-08]
[1751550917856,0.4387,2635.1,2634.8,1e-08]
[1751550918245,0.1896,2635.1,2634.8,1e-08]
[1751550918541,0.1896,2635.1,2634.8,3.79529205]
[1751550919052,0.1896,2635.1,2634.8,1e-08]
[1751550919263,3.79508044,2635.0,2634.8,1e-08]
[1751550919425,3.98459247,2635.1,2634.8,1e-08]
[1751550919620,5.01163919,2635.1,2634.8,1e-08]
[1751550919842,1.21664672,2635.1,2634.8,1e-08]
[1751550920156,0.1896,2635.1,2634.8,1e-08]
[1751550921152,3.98459166,2635.1,2634.8,1e-08]
[1751550921361,0.1896,2635.1,2634.8,1e-08]
[1751550921650,0.1896,2635.1,2634.8,10.00000001]
[1751550921848,3.98458608,2635.1,2634.8,1e-08]
[1751550922165,5.01163289,2635.1,2634.8,1e-08]
[1751550922369,3.79506641,2635.0,2634.8,1e-08]
[1751550922548,3.79521044,2634.9,2634.8,1e-08]
[1751550922728,3.79511514,2635.0,2634.8,1e-08]
[1751550922919,3.79506641,2635.0,2634.8,1e-08]
[1751550923259,5.01161665,2635.1,2634.8,1e-08]
[1751550923260,7.50265127,2635.1,2634.8,0.01]
[1751550923447,3.79507802,2635.0,2634.8,0.01]
[1751550923651,3.72764681,2635.1,2634.8,0.01]
[1751550923832,3.79520622,2635.0,2634.8,0.01]
[1751550924355,3.79521044,2634.9,2634.8,0.01]
[1751550924565,5.40131044,2634.9,2634.8,0.01]
[1751550924926,1.6061,2634.9,2634.8,0.01]
[1751550925126,2.7006,2635.1,2634.8,0.01]
[1751550925364,3.79520489,2635.0,2634.8,0.01]
[1751550925526,0.2096,2635.1,2634.8,0.01]
[1751550926447,4.0045485,2635.1,2634.8,0.01]
[1751550926659,3.79514614,2635.0,2634.8,0.01]
[1751550926865,0.2096,2635.1,2634.8,0.01]
[1751550927242,0.2096,2635.1,2634.8,3.80531159]
[1751550927439,0.02,2635.1,2635.0,13.79506641]
[1751550927743,1e-08,2635.1,2635.0,15.64386641]
[1751550928067,0.1896,2636.5,2636.0,3.79352743]
[1751550928263,0.1896,2636.5,2636.1,3.79346702]
[1751550928576,3.79234082,2636.9,2636.0,1.6592]
[1751550928892,3.79234082,2636.9,2636.4,0.1896]
[1751550928893,3.79270152,2636.7,2636.4,0.1896]
[1751550929084,1.37923408,2636.8,2636.4,0.1896]
[1751550929429,5.17178244,2636.8,2636.4,0.1896]
[1751550929634,0.1896,2636.9,2636.4,0.1896]
[1751550929868,3.98250726,2636.5,2636.0,1.8488]
[1751550930065,0.1896,2636.5,2636.0,1.8488]
[1751550930270,3.98258886,2636.5,2636.0,1.8488]
[1751550930440,3.79327195,2636.3,2636.0,1.8488]
[1751550930648,0.77757918,2636.3,2636.0,3.9831915]
[1751550930842,3.79306186,2636.4,2636.0,0.1896]
[1751550931173,0.1896,2636.5,2636.0,0.1896]
[1751550931337,1.5977,2636.9,2635.7,10.4989]
[1751550931532,3.79213645,2637.1,2636.5,3.79290726]
[1751550931533,1e-08,2637.1,2636.5,3.79290726]
[1751550931733,7.21934442,2637.1,2636.5,0.1896]
[1751550931966,5.62830645,2636.8,2636.3,0.1896]
[1751550932176,3.79302794,2636.5,2636.1,1.6483]
[1751550932360,0.1896,2636.6,2636.1,5.63126668]
[1751550932560,3.98245395,2636.6,2636.1,1.8379]
[1751550932793,0.1896,2636.6,2636.2,3.79325447]
[1751550933100,0.1896,2636.6,2636.1,5.63137333]
[1751550933101,0.1896,2636.8,2636.3,3.98273263]
[1751550933405,3.98214287,2636.8,2636.3,0.1896]
[1751550933692,0.39821429,2636.7,2636.3,0.1896]
[1751550933896,3.98214287,2636.8,2636.5,3.79280573]
[1751550933897,0.1896,2636.8,2636.5,3.79280573]
[1751550934093,0.91353444,2637.0,2636.6,3.79265787]
[1751550934299,0.91353444,2637.0,2636.7,3.79261753]
[1751550934504,0.1896,2637.0,2636.6,3.79269532]
[1751550934667,0.1896,2637.0,2636.5,0.1896]
[1751550934862,1e-08,2637.1,2636.9,3.98185596]
[1751550935062,1e-08,2637.1,2636.9,0.1896]
[1751550935304,1e-08,2637.1,2637.0,3.79218809]
[1751550935667,1e-08,2637.1,2637.0,3.98178809]
[1751550935862,1e-08,2637.1,2636.6,10.4791]
[1751550936198,1e-08,2637.1,2636.9,3.79232239]
[1751550936413,1e-08,2637.1,2636.8,3.98200863]
[1751550936897,1e-08,2637.1,2636.8,0.1896]
[1751550937212,3.98199697,2636.9,2636.5,0.1896]
[1751550937375,4.54264268,2636.9,2636.5,0.1896]
[1751550937791,0.7502097,2636.9,2636.5,0.1896]
[1751550938205,3.79254184,2636.8,2636.5,0.1896]
[1751550938522,3.98232103,2636.7,2636.2,3.98286997]
[1751550938717,3.98232103,2636.7,2636.2,0.1896]
[1751550938718,0.1896,2636.7,2636.2,0.1896]
[1751550939227,13.616867,2636.9,2636.5,0.1896]
[1751550939388,0.1896,2636.9,2636.6,3.7927634]
[1751550939578,3.79219885,2637.0,2636.6,0.1896]
[1751550939779,0.56058989,2636.9,2636.4,3.79294777]
[1751550940017,0.1896,2636.9,2636.4,3.98254777]
[1751550940174,0.1896,2636.9,2636.5,3.7929003]
[1751550940612,3.79248516,2636.8,2636.4,0.1896]
[1751550941002,3.79269011,2636.7,2636.1,8.907]
[1751550941212,3.79269011,2636.7,2636.3,0.1896]
[1751550941416,1.62410001,2637.1,2636.1,8.907]
[1751550941618,3.79309838,2636.4,2636.0,1.5291]
[1751550941829,3.79309838,2636.4,2636.1,0.1896]
[1751550942122,3.98247093,2636.6,2636.1,0.1896]
[1751550942123,3.79297252,2636.5,2636.1,0.1896]
[1751550942286,0.1896,2636.6,2636.1,0.1896]
[1751550942479,0.1896,2636.6,2636.2,3.79323198]
[1751550942723,0.58783079,2636.6,2636.2,3.79323198]
[1751550942925,4.3805985,2636.6,2636.2,3.79323198]
[1751550943127,0.58783079,2636.6,2636.2,3.79323198]
[1751550943430,4.38062202,2636.6,2636.1,3.98301629]
[1751550943604,0.58783079,2636.6,2636.2,3.79331512]
[1751550943799,5.41616784,2637.1,2636.0,5.32267358]
[1751550943800,3.79230592,2637.0,2636.4,3.79297694]
[1751550944014,3.79230592,2637.0,2636.5,3.98248379]
[1751550944015,0.1896,2636.9,2636.5,3.98248379]
[1751550944205,0.1896,2636.9,2636.6,1.661]
[1751550944410,1e-08,2637.1,2636.8,0.1896]
[1751550944605,1e-08,2637.1,2636.2,1.5888]
[1751550944606,3.7923319,2636.9,2636.2,1.5888]
[1751550944902,1e-08,2637.1,2636.3,3.98272564]
[1751550944903,4.36137611,2636.8,2636.3,3.98272564]
[1751550945092,0.56883319,2636.8,2636.3,3.98272564]
[1751550945293,0.56883319,2636.8,2636.5,3.79288379]
[1751550945830,0.56883319,2636.8,2636.5,3.79288377]
[1751550946510,3.79234343,2636.9,2636.4,3.79297015]
[1751550946714,3.79270368,2636.7,2636.2,14.28106348]
[1751550947020,3.79270368,2636.7,2636.4,0.1896]
[1751550947390,0.1896,2636.8,2636.5,3.79283713]
[1751550947592,0.1896,2636.8,2636.4,3.98257987]
[1751550947800,0.1896,2636.8,2636.4,0.1896]
[1751550947994,0.1896,2636.8,2636.5,3.79276862]
[1751550948194,1e-08,2637.1,2636.7,3.79249161]
[1751550948422,0.01,2636.8,2636.7,0.1896]
[1751550949732,0.01,2636.8,2636.4,3.79296616]
[1751550950025,0.01,2636.8,2636.5,0.1896]
[1751550950532,3.80252597,2636.8,2636.5,0.1896]
[1751550950722,3.8025471,2636.8,2636.5,0.1896]
[1751550951035,4.55213256,2636.7,2636.5,0.1896]
[1751550951333,3.7927634,2636.6,2636.5,0.1896]
[1751550951644,3.7927634,2636.6,2636.4,0.1896]
[1751550952204,4.5521551,2636.7,2636.4,0.1896]
[1751550952427,3.79282936,2636.6,2636.4,0.1896]
[1751550952707,3.79290726,2636.5,2636.4,0.1896]
[1751550952903,0.1896,2636.4,2635.7,0.1896]
[1751550953106,0.1896,2636.4,2635.1,1.6615]
[1751550953107,3.7942707,2635.6,2635.1,1.6615]
[1751550953406,3.79391456,2635.8,2635.1,1.6615]
[1751550953407,3.79415397,2635.7,2635.3,0.1896]
[1751550953704,3.79428292,2635.6,2635.3,0.1896]
[1751550953926,1.9013754,2635.7,2635.3,0.1896]
[1751550954124,1.503,2635.7,2635.3,0.1896]
[1751550954310,3.79420578,2635.6,2635.3,0.1896]
[1751550954514,3.98356271,2635.8,2635.3,0.1896]
[1751550954515,3.79449039,2635.4,2635.3,0.1896]
[1751550954711,3.7944022,2635.5,2635.2,8.877]
[1751550954927,3.98387109,2635.6,2635.2,8.877]
[1751550955137,0.96738225,2635.6,2635.3,3.79461293]
[1751550955629,0.96738225,2635.6,2635.2,12.67170315]
[1751550955807,4.76160011,2635.6,2635.2,8.877]
[1751550956145,4.76164912,2635.6,2635.2,8.877]
[1751550956458,4.76164882,2635.6,2635.2,8.877]
[1751550956637,0.96738225,2635.6,2635.2,12.67176085]
[1751550956945,0.96738225,2635.6,2635.2,12.67171189]
[1751550957148,4.76161472,2635.6,2635.2,8.877]
[1751550957453,4.76159256,2635.6,2635.2,8.877]
[1751550957756,0.1896,2635.6,2635.3,2.3432]
[1751550957931,10.1896,2635.6,2635.3,2.3432]
[1751550958127,3.79443344,2635.5,2635.3,2.3432]
[1751550958331,0.1896,2635.6,2635.3,2.3432]
[1751550958555,3.79434996,2635.5,2635.3,2.3432]
[1751550958729,0.398395,2635.4,2635.3,2.3432]
[1751550959256,3.98380298,2635.6,2635.3,2.3432]
[1751550959658,3.79449039,2635.4,2635.3,1.7574]
[1751550959956,13.427267,2634.8,2634.0,0.02]
[1751550960155,3.79586174,2634.5,2634.0,0.02]
[1751550960359,3.79593939,2634.4,2634.0,0.02]
[1751550960568,3.79628442,2634.2,2634.0,0.02]
[1751550960736,3.79593939,2634.4,2634.0,8.884]
[1751550960737,3.79611559,2634.3,2634.0,8.884]
[1751550961135,3.79624464,2634.2,2634.0,8.884]
[1751550961327,3.79636308,2634.1,2634.0,0.02]
[1751550961534,9.14564046,2634.1,2634.0,0.02]
[1751550962132,5.71837346,2634.1,2634.0,0.02]
[1751550962332,3.79636308,2634.1,2634.0,0.02]
[1751550962642,0.75913603,2634.5,2634.0,0.02]
[1751550962862,3.79586025,2634.5,2634.0,0.02]
[1751550963383,3.79580497,2634.5,2634.0,0.02]
[1751550963582,3.79594308,2634.4,2634.0,0.02]
[1751550963897,3.79611642,2634.3,2634.0,0.02]
[1751550964116,8.74163008,2634.1,2634.0,0.02]
[1751550964409,8.7420625,2633.8,2633.7,1e-08]
[1751550964553,9.2920625,2633.8,2633.7,1e-08]
[1751550964754,9.2920625,2633.8,2632.4,1.6312]
[1751550964755,8.85693921,2633.4,2632.4,8.858]
[1751550965190,8.85693921,2633.4,2632.5,8.857]
[1751550965975,8.85693921,2633.4,2633.0,0.01]
[1751550966183,5.42967221,2633.4,2633.0,0.01]
[1751550966389,8.85693921,2633.4,2633.0,0.01]
[1751550966692,10.36485742,2633.4,2633.0,0.01]
[1751550966894,8.87547186,2633.1,2633.0,0.01]
[1751550967077,9.16251963,2633.1,2633.0,0.01]
[1751550967477,5.077667,2633.1,2633.0,0.01]
[1751550967683,1.5215,2633.6,2633.0,0.01]
[1751550967988,3.427267,2633.5,2633.0,3.80785455]
[1751550968380,3.427267,2633.5,2633.0,4.34121001]
[1751550968565,3.427267,2633.5,2633.0,0.54335546]
[1751550968758,1.5215,2633.6,2633.0,0.54335546]
[1751550968759,3.427267,2633.6,2633.1,3.7977327]
[1751550968976,3.427267,2633.6,2633.1,3.79780486]
[1751550969163,3.79708386,2633.6,2633.1,3.79780486]
[1751550969475,13.427267,2633.6,2633.1,3.79780486]
[1751550969657,13.427267,2633.6,2633.0,0.01]
[1751550969658,7.22477726,2633.4,2633.0,0.1996]
[1751550969886,10.93103773,2633.3,2633.0,0.01]
[1751550970159,0.93103773,2633.3,2633.0,0.01]
[1751550970462,0.1896,2633.3,2633.1,3.79778318]
[1751550970676,0.1896,2633.3,2633.0,0.01]
[1751550971476,3.98726952,2633.2,2633.0,0.01]
[1751550971682,3.79780486,2633.1,2633.0,0.01]
[1751550972005,9.39497186,2633.1,2633.0,1e-08]
[1751550972202,10.3323593,2633.1,2633.0,1e-08]
[1751550973783,12.7583593,2633.1,2633.0,1e-08]
[1751550974298,9.3310923,2633.1,2633.0,1e-08]
[1751550974468,7.22507186,2633.1,2633.0,1e-08]
[1751550975302,7.77507186,2633.1,2633.0,1e-08]
[1751550975787,7.22507186,2633.1,2633.0,1e-08]
[1751550975981,3.427267,2633.1,2633.0,1e-08]
[1751550976178,7.22507186,2633.1,2633.0,1e-08]
[1751550976407,7.37371091,2633.1,2633.0,1e-08]
[1751550976569,11.17151577,2633.1,2633.0,1e-08]
[1751550976765,7.37371091,2633.1,2633.0,1e-08]
[1751550977376,11.17151577,2633.1,2633.0,1e-08]
[1751550977576,4.94771091,2633.1,2633.0,1e-08]
[1751550977788,7.37371091,2633.1,2633.0,1e-08]
[1751550977990,7.37471091,2633.1,2633.0,1e-08]
[1751550978192,3.79581413,2634.5,2633.0,1e-08]
[1751550978369,3.79762591,2633.3,2633.0,1e-08]